[Event "14th Karen Asrian Memorial 2024"]
[Site "Yerevan"]
[Date "2024.04.28"]
[Round "5.2"]
[White "Davtyan, Artur"]
[Black "Ohanyan, Emin"]
[Result "0-1"]
[ECO "D32"]
[WhiteElo "2474"]
[BlackElo "2488"]
[Annotator "TA"]
[PlyCount "82"]
[EventDate "2024.04.24"]
[EventType "swiss"]
[EventCountry "ARM"]
[SourceTitle "playchess.com"]
[Source "ChessBase"]
[SourceQuality "1"]
[TimeControl "40/5400+30:1800+30"]

{[%evp 23,82,0,19,20,25,20,25,4,0,0,34,-35,-37,-63,0,-35,-37,-209,-201,-219,-82,-68,-43,-21,-22,-41,-32,-35,-34,-29,-20,-14,-35,-20,-20,-39,-14,-22,-8,-73,-44,-64,-22,-121,0,0,0,0,0,-9,0,-224,-229,-200,-197,-467,-412,-677,-677,-685,-666]} 1. Nf3 {[%emt 0:03:43]} d5 {[%emt 0:09:00]} 2. c4 {[%emt 0:00:12]} e6 {[%emt 0:00:13]} 3. e3 {[%emt 0:00:05]} Nf6 {[%emt 0:02:21]} 4. b3 {[%emt 0:00:04]} c5 {[%emt 0:01:21]} 5. Bb2 {[%emt 0:00:18]} Nc6 {[%emt 0:00:21]} 6. cxd5 {[%emt 0:00:05]} exd5 {[%emt 0:00:05]} 7. Be2 {[%emt 0:00:04]} a6 {[%emt 0:16:58]} 8. d4 {[%emt 0:41:14]} Bd6 {[%emt 0:14:35]} 9. O-O {[%emt 0:01:14]} O-O {[%emt 0:00:15]} 10. dxc5 {[%emt 0:00:04]} Bxc5 {[%emt 0:00:02]} 11. Nc3 {[%emt 0:00:07]} Ba7 {[%emt 0:04:15]} 12. Rc1 {[%emt 0:00:05]} Be6 {[%emt 0:33:02]} 13. Na4 {[%emt 0:00:57][%cal Oe2a6]} Rc8 {[%emt 0:00:03]} 14. Ne5 {[%emt 0:31:11]} Nxe5 {[%emt 0:01:49]} 15. Bxe5 {[%emt 0:02:39] White has an edge.} Ne4 {[%emt 0:01:25]} 16. Rxc8 {[%emt 0:03:36]} Qxc8 {[%emt 0:00:03]} 17. Qa1 {[%emt 0:00:52]} ({Better is} 17. Bd4 $14 Bb8 18. Bd3) 17... Qc2 $15 {[%emt 0:02:06]} 18. Bf3 {[%emt 0:10:11]} b5 {[%emt 0:03:14]} (18... Nxf2 $1 $15 19. Bxg7 (19. Rxf2 $2 Bxe3 20. Bg3 b5 $19) 19... Bxe3) 19. Nc3 {[%emt 0:00:42][%cal Oe5g7] aiming for Bxg7!} Nd2 {[%emt 0:04:23] White must now prevent ...d4.} 20. Bd1 $2 {[%emt 0:00:27]} ({Only move:} 20. Qd1 $15 Qb2 21. Qc1 Nxf3+ 22. gxf3 Qxc1 23. Rxc1) 20... Qf5 $19 {[%emt 0:00:23]} 21. Bxg7 {[%emt 0:00:05]} Nxf1 {[%emt 0:01:51]} ({Not} 21... Kxg7 22. Ne4+ (22. Nxd5+ $2 {loses.} f6 $19) 22... d4 23. Nxd2 $11) (21... Re8 $1 $19 {[%cal Od2f1] has better winning chances.} 22. Re1 Qg6) 22. Bxf8 $17 {[%emt 0:00:21]} Kxf8 {[%emt 0:00:09]} (22... Nxe3 $5 23. Nxd5 Qxf2+ 24. Kxf2 Nc2+ 25. Kg3 Nxa1 $17) 23. Kxf1 {[%emt 0:00:52]} Bxe3 {[%emt 0:00:10][%csl Ge3][%cal Rf5f2]} 24. Bf3 {[%emt 0:00:16]} Bd4 {[%emt 0:01:12]} 25. Qc1 {[%emt 0:00:01] Prevents Qc2.} Bxc3 {[%emt 0:02:36]} 26. Qxc3 $15 {[%emt 0:00:03][%mdl 4096] Endgame. KQB-KQB} Qb1+ {[%emt 0:00:03]} 27. Qe1 {[%emt 0:01:21]} Qxa2 {[%emt 0:00:03]} 28. Qb4+ {[%emt 0:00:10]} Ke8 {[%emt 0:01:28]} 29. g4 {[%emt 0:00:01]} Kd7 {[%emt 0:00:33]} 30. Kg2 {[%emt 0:00:08]} Qc2 {[%emt 0:00:25]} 31. Qa3 {[%emt 0:00:49] [#]} (31. h4 $11) 31... Qc6 $1 $17 {[%emt 0:00:34] Black is more active.} 32. Qb2 {[%emt 0:02:58]} b4 {[%emt 0:00:43] With the idea ...Qc5.} 33. Qa1 {[%emt 0:00:35] [#]} (33. Qd4 $11 {remains equal.}) 33... Qc3 {[%emt 0:00:30]} (33... Qb6 $1 $17 {Threatens to win with ...d4.} 34. h4 d4) 34. Qxa6 $11 {[%emt 0:00:58]} Qxb3 {[%emt 0:00:13] Strongly threatening ...Qc4.} 35. Qb7+ {[%emt 0:00:53]} Kd6 {[%emt 0:00:15] ...Qc3 is the strong threat.} 36. Qb8+ {[%emt 0:00:36]} Kc5 {[%emt 0:01:05] And now ...Kc4 would win.} 37. Qa7+ $2 {[%emt 0:00:29]} (37. Be2 $11 {and White stays safe.}) 37... Kc4 $19 {[%emt 0:00:38] Hoping for ...d4.} 38. Be2+ {[%emt 0:00:32]} Kc3 {[%emt 0:00:01]} 39. Qe3+ {[%emt 0:00:30]} (39. Qa1+ Kd2 (39... Qb2 40. Qd1 $17) 40. Bf3) 39... Kb2 {[%emt 0:00:05]} 40. Qd2+ {[%emt 0:00:00]} (40. Bd3 $142) 40... Ka3 {[%emt 0:00:00]} 41. Bd3 {[%emt 0:03:18]} Qc3 {[%emt 0:04:48] Weighted Error Value: White=0.49/Black=0.20 (precise) .  Loses game:     	White=2     	---        Mistake:       	White=5     	Black=3      Inaccurate:     	White=2     	Black=3      OK:         	White=11    	Black=10     Best:        	White=2     	Black=6      Strong:       	---       	Black=1} 0-1

[Event "14th Karen Asrian Memorial 2024"]
[Site "Yerevan"]
[Date "2024.04.28"]
[Round "5.3"]
[White "Hayrapetyan, Hovik"]
[Black "Danielyan, Vahe"]
[Result "1-0"]
[ECO "E62"]
[WhiteElo "2432"]
[BlackElo "2331"]
[Annotator "TA"]
[PlyCount "157"]
[EventDate "2024.04.24"]
[EventType "swiss"]
[EventCountry "ARM"]
[SourceTitle "playchess.com"]
[Source "ChessBase"]
[SourceQuality "1"]
[TimeControl "40/5400+30:1800+30"]

{[%evp 49,156,0,0,0,0,0,8,8,103,98,175,183,176,88,87,87,86,87,121,87,80,80,80,80,87,87,186,59,64,50,87,82,78,50,103,102,110,72,72,72,72,72,72,72,78,72,92,92,84,85,337,277,967,995,987,406,835,864,837,456,981,978,1031,993,1377,1218,1345,994,1251,1169,29970,29972,29972,29970,29962,2009,1962,1937,1922,1915,1781,1683,1412,1362,29974,29975,29975,29976,29976,29977,29976,29977,29980,29981,29981,29982,29982,29983,29983,29984,29983,29982,29985,29986,29986,29987,29988,29989,29989]} 1. d4 {[%emt 0:00:06]} Nf6 {[%emt 0:00:05]} 2. c4 {[%emt 0:00:24]} g6 {[%emt 0:00:05]} 3. Nc3 {[%emt 0:00:42]} Bg7 {[%emt 0:00:05]} 4. Nf3 {[%emt 0:02:12]} O-O {[%emt 0:00:09]} 5. g3 {[%emt 0:08:07]} c6 {[%emt 0:01:10]} 6. Bg2 {[%emt 0:04:45]} d6 {[%emt 0:00:23]} 7. O-O {[%emt 0:00:15]} Bf5 {[%emt 0:00:04]} 8. Qb3 {[%emt 0:01:47]} Qb6 {[%emt 0:00:08]} 9. Re1 {[%emt 0:00:04] E62: King's Indian: Fianchetto: 6...c6 and Panno Variation (6...Nc6) without ...a6.} Na6 {[%emt 0:00:57]} 10. e4 {[%emt 0:00:12]} Bg4 {[%emt 0:00:06]} 11. Be3 {[%emt 0:00:04]} Qxb3 {[%emt 0:00:11]} 12. axb3 {[%emt 0:00:04]} Nd7 {[%emt 0:00:07]} 13. h3 {[%emt 0:09:20]} Bxf3 {[%emt 0:00:06]} 14. Bxf3 {[%emt 0:00:02]} c5 {[%emt 0:00:08]} 15. e5 $146 {[%emt 0:15:07]} ({Predecessor:} 15. Red1 cxd4 16. Bxd4 Bxd4 17. Rxd4 Ndc5 18. Bd1 Nb4 19. f4 a6 20. Kg2 Rad8 21. Rd2 {1-0 Kaczorowski,P (2047)-Zaninotto,F (2162) Warsaw Najdorf Memorial op-A 11th 2013 (6)}) 15... cxd4 {[%emt 0:16:20]} 16. Bxd4 {[%emt 0:00:43]} Nb4 {[%emt 0:06:47]} 17. Bxb7 {[%emt 0:02:07]} Rab8 {[%emt 0:03:29]} 18. Be4 {[%emt 0:00:31]} Nxe5 {[%emt 0:07:59]} 19. Bxa7 {[%emt 0:17:45]} f5 {[%emt 0:02:49]} 20. Bxb8 {[%emt 0:02:32]} fxe4 {[%emt 0:00:32]} 21. Ba7 {[%emt 0:01:15]} Nc2 {[%emt 0:00:43]} 22. Rec1 {[%emt 0:01:49]} Nxa1 {[%emt 0:03:27]} 23. Rxa1 {[%emt 0:00:02]} Ra8 {[%emt 0:00:08]} 24. Nb5 {[%emt 0:19:55]} Nf3+ {[%emt 0:02:35]} 25. Kg2 {[%emt 0:01:33]} Bxb2 {[%emt 0:01:24]} 26. Ra4 {[%emt 0:00:23]} Bf6 {[%emt 0:03:50]} 27. Nc7 {[%emt 0:02:05]} Rc8 {[%emt 0:00:43]} 28. Nd5 {[%emt 0:00:03]} Nd2 {[%emt 0:03:13]} (28... Kf7 $11 {remains equal.}) 29. Bd4 $16 {[%emt 0:03:15]} Rb8 {[%emt 0:20:42]} (29... Kf8 $16 {is a better defense.} 30. Bxf6 exf6) 30. Bxf6 $18 {[%emt 0:00:02]} exf6 {[%emt 0:00:03]} 31. Ra7 {[%emt 0:00:04]} ({But not} 31. Nxf6+ $6 Kg7 32. Ra6 Rxb3 $14) (31. Ra2 $18 Nxb3 32. Nxf6+ Kf7 33. Nxe4 (33. Nxh7 Nc5 $16)) 31... Rxb3 $16 {[%emt 0:01:33]} 32. Nxf6+ {[%emt 0:00:06]} Kf8 {[%emt 0:00:02]} 33. Nxh7+ {[%emt 0:00:06]} Kg8 {[%emt 0:01:24]} 34. Nf6+ {[%emt 0:00:04]} Kf8 {[%emt 0:00:02]} 35. c5 {[%emt 0:01:42]} dxc5 {[%emt 0:02:23]} 36. Nd7+ {[%emt 0:00:04]} Ke8 {[%emt 0:04:08]} 37. Nxc5 {[%emt 0:00:04]} Rb2 {[%emt 0:00:46]} (37... Rc3 $16 {was necessary.}) 38. Ra3 {[%emt 0:01:09]} (38. Nd7 $1 $18) 38... Rc2 $14 {[%emt 0:02:08]} 39. Na4 {[%emt 0:03:21]} Ke7 {[%emt 0:02:31]} 40. Re3 {[%emt 0:00:00]} Kf6 {[%emt 0:00:00]} 41. Re2 {[%emt 0:13:10]} Kf5 {[%emt 0:07:27]} (41... g5 $1 $14) 42. Nb6 $16 {[%emt 0:01:11]} Nf3 {[%emt 0:02:48]} 43. Rxc2 {[%emt 0:00:15]} Ne1+ {[%emt 0:00:05]} 44. Kf1 {[%emt 0:00:04]} Nxc2 {[%emt 0:00:02]} 45. Ke2 {[%emt 0:00:31]} Nd4+ {[%emt 0:03:52]} 46. Ke3 {[%emt 0:00:25]} Nc2+ {[%emt 0:00:17]} 47. Kd2 $1 {[%emt 0:00:28]} Na3 {[%emt 0:01:57]} 48. Kc3 {[%emt 0:07:00]} Nb5+ {[%emt 0:06:43]} 49. Kc4 {[%emt 0:00:07]} Na3+ $2 {[%emt 0:00:26][%mdl 8192]} (49... Nc7 $16) 50. Kd5 $18 {[%emt 0:00:05]} Nc2 $2 {[%emt 0:00:33]} (50... Nb5 51. Nc4 Nc3+ 52. Kd6 Ne2 53. Ne3+ Kf6) 51. Nc4 $18 {[%emt 0:01:30]} Nb4+ {[%emt 0:00:05]} 52. Kd4 {[%emt 0:00:26]} Nc2+ {[%emt 0:00:22] [#]} 53. Kc3 $1 {[%emt 0:00:21]} Ne1 {[%emt 0:00:44] [#]} 54. Kd2 $1 {[%emt 0:00:07]} Nd3 {[%emt 0:00:54]} (54... Nf3+ $142 55. Ke3 Ng5) 55. Ke3 $18 {[%emt 0:01:01]} Nc5 {[%emt 0:00:01]} 56. h4 {[%emt 0:02:05]} Ke6 {[%emt 0:00:06]} 57. Kd4 {[%emt 0:01:17]} Nd3 {[%emt 0:00:22]} 58. f3 {[%emt 0:00:16]} (58. Kxe4 Nxf2+ 59. Kf4 Kf6 $14) 58... Nf2 {[%emt 0:01:11]} 59. fxe4 {[%emt 0:01:33]} Nh1 {[%emt 0:00:05]} 60. g4 {[%emt 0:00:03]} Nf2 {[%emt 0:00:06]} 61. g5 {[%emt 0:00:28]} Ng4 {[%emt 0:00:07]} 62. Ne3 {[%emt 0:02:37]} (62. Kd3 $142 Nf2+ 63. Ke3 Nd1+ 64. Kd4 Kf7 65. Ne5+ Kg7 66. Nd3 Kf7 67. e5) 62... Ne5 {[%emt 0:00:23]} 63. Ng2 {[%emt 0:00:07]} Nf3+ {[%emt 0:00:03]} 64. Ke3 {[%emt 0:00:04]} Ne5 {[%emt 0:00:03]} 65. Nf4+ {[%emt 0:00:16]} Kd6 {[%emt 0:00:06]} 66. Nd3 {[%emt 0:00:19]} Nc4+ {[%emt 0:00:07]} 67. Kd4 {[%emt 0:03:39]} Nd2 {[%emt 0:00:04]} 68. Ne5 {[%emt 0:02:33]} Nb3+ {[%emt 0:00:04]} 69. Kc3 {[%emt 0:00:01]} Nc5 {[%emt 0:00:00]} 70. Nxg6 {[%emt 0:00:13]} Nxe4+ {[%emt 0:00:05]} 71. Kd4 {[%emt 0:00:01]} Ng3 {[%emt 0:00:11]} 72. Ke3 {[%emt 0:00:07]} Ke6 {[%emt 0:00:14]} 73. Kf4 {[%emt 0:00:21]} Ne2+ {[%emt 0:00:05]} 74. Kg4 {[%emt 0:00:04]} Kf7 {[%emt 0:00:06]} 75. Ne5+ {[%emt 0:00:23]} Kg7 {[%emt 0:00:05]} 76. h5 {[%emt 0:00:12]} Nd4 {[%emt 0:00:05]} 77. h6+ {[%emt 0:00:21]} Kg8 {[%emt 0:00:04]} 78. g6 {[%emt 0:00:07]} Ne6 {[%emt 0:00:05]} 79. Nd7 {[%emt 0:01:13]} 1-0

[Event "14th Karen Asrian Memorial 2024"]
[Site "Yerevan"]
[Date "2024.04.28"]
[Round "5.4"]
[White "Davtyan, Arsen"]
[Black "Shahinyan, David"]
[Result "1/2-1/2"]
[ECO "C41"]
[WhiteElo "2421"]
[BlackElo "2441"]
[Annotator "TA"]
[PlyCount "210"]
[EventDate "2024.04.24"]
[EventType "swiss"]
[EventCountry "ARM"]
[SourceTitle "playchess.com"]
[Source "ChessBase"]
[SourceQuality "1"]
[TimeControl "40/5400+30:1800+30"]

{[%evp 17,210,47,31,18,28,15,26,9,14,0,0,9,8,0,11,-19,64,0,-16,-2,-16,-69,-54,-118,-102,-131,-128,-148,-145,-151,-153,-157,-159,-158,-162,-172,-135,-211,-213,-265,-166,-143,-70,-119,-141,-187,-169,-296,-184,-503,0,0,0,0,0,-16,-6,-4,0,0,0,-20,0,0,0,0,0,-11,-16,-18,-18,-18,0,-69,-69,-69,-69,-69,-69,-49,-29,-29,-29,-29,-29,-29,-29,-29,-29,-29,-29,-29,-29,-29,-29,-29,-8,-8,-8,-29,-29,-29,0,-29,0,0,0,-29,-29,-29,0,0,0,0,0,0,0,0,0,0,0,0,0,0,0,0,0,0,0,0,0,0,0,0,0,-34,0,0,0,0,0,0,0,0,0,0,0,0,0,0,0,0,0,0,0,0,0,0,0,0,0,0,0,0,0,0,0,0,0,0,0,0,0,0,0,0,0,0,0,0,0,0,0,0,0,0,0,0,0,0,0,0,0,0,0]} 1. e4 {[%emt 0:04:22]} d6 {[%emt 0:00:43]} 2. d4 {[%emt 0:00:10]} Nf6 {[%emt 0:00:04]} 3. Nc3 {[%emt 0:00:04]} e5 {[%emt 0:00:06]} 4. Nf3 {[%emt 0:01:27]} Nbd7 {[%emt 0:00:04]} 5. Bc4 {[%emt 0:00:10]} Be7 {[%emt 0:00:03]} 6. O-O {[%emt 0:00:29]} O-O {[%emt 0:00:05]} 7. a4 {[%emt 0:00:16]} c6 {[%emt 0:00:04]} 8. Re1 {[%emt 0:00:53]} h6 {[%emt 0:00:04]} 9. h3 {[%emt 0:04:29]} Re8 {[%emt 0:00:19]} 10. Ba2 {[%emt 0:06:45][%cal Oa4a5]} exd4 {[%emt 0:12:07]} 11. Nxd4 {[%emt 0:00:16]} Bf8 {[%emt 0:00:31]} 12. Kh1 {[%emt 0:08:47] White has an edge.} d5 {[%emt 0:11:37]} 13. exd5 {[%emt 0:04:06]} Rxe1+ {[%emt 0:02:00]} 14. Qxe1 {[%emt 0:00:06]} Nb6 {[%emt 0:00:01]} 15. Bf4 {[%emt 0:23:35]} Nfxd5 {[%emt 0:09:46]} 16. Be5 {[%emt 0:07:48]} Qg5 {[%emt 0:11:47]} (16... Nb4 $11 17. a5 Nxa2 18. axb6 axb6 (18... Nxc3 19. Rxa7 Nd5 20. Rxa8 $14)) 17. Rd1 {[%emt 0:10:44]} ({White should play} 17. a5 $14 Nxc3 18. bxc3) 17... Nxc3 $11 {[%emt 0:09:44]} 18. bxc3 {[%emt 0:03:10]} Nxa4 {[%emt 0:04:56]} 19. f4 {[%emt 0:02:16]} (19. Rd3 $1 $11 Nb6 20. Rf3) 19... Qh5 $15 {[%emt 0:02:25][%cal Oa4c3]} 20. Ne2 {[%emt 0:10:22]} ({White should try} 20. Rd3 $1 $15 Bf5 21. Re3) 20... Nb6 {[%emt 0:17:58]} 21. Rd3 {[%emt 0:06:11]} Bf5 {[%emt 0:05:58]} 22. Re3 {[%emt 0:01:12]} Nd5 {[%emt 0:01:04]} (22... Bxc2 23. g4 Qg6 24. Nd4 $15) 23. Ng3 {[%emt 0:02:14]} Qg6 {[%emt 0:00:04]} 24. Nxf5 {[%emt 0:00:04]} Qxf5 {[%emt 0:00:03]} 25. Rf3 {[%emt 0:02:23]} Re8 {[%emt 0:01:04] Threatens to win with ...f6.} 26. Qd2 {[%emt 0:00:22]} Qe4 {[%emt 0:01:30]} 27. Rg3 {[%emt 0:00:34]} (27. c4 $17 {keeps fighting.} Nf6 28. Qd1) 27... b5 $19 {[%emt 0:00:34]} 28. Qd1 {[%emt 0:00:36]} Re6 {[%emt 0:02:18]} ({And not} 28... Nxf4 29. Bxf4 Qe1+ (29... Qxf4 $2 30. Rf3 $18) 30. Qxe1 Rxe1+ 31. Kh2 $18) 29. Rd3 {[%emt 0:00:26][%cal Rd3d5]} Rg6 {[%emt 0:01:01]} (29... a5 $1 $17 {aiming for ...a4.} 30. Bxd5 cxd5) 30. Bxd5 {[%emt 0:00:02]} (30. Qf3 $1 $15 Qxf3 31. Rxf3) 30... cxd5 $17 {[%emt 0:00:12][%csl Gg6][%cal Re4g2]} 31. Qd2 {[%emt 0:00:00] [#]} (31. Qf3 $17 {was necessary.}) 31... Bc5 $1 $19 {[%emt 0:02:38]} 32. Rxd5 {[%emt 0:00:16]} (32. Bd4 $142 Bd6 33. Be5) 32... Bb6 {[%emt 0:00:01]} 33. Rxb5 $2 {[%emt 0:01:01] [#]} (33. Rd7 {is tougher.}) 33... Re6 $2 {[%emt 0:04:24]} (33... Be3 $1 $19 {[%cal Re3d2]} 34. Rb4 Qxb4 35. Qxe3 Qb1+ 36. Kh2 Qxc2) 34. Rb1 {[%emt 0:00:51]} Re8 {[%emt 0:00:55]} 35. Re1 {[%emt 0:00:46]} Qc6 {[%emt 0:00:14]} 36. Rd1 {[%emt 0:00:39]} Rd8 {[%emt 0:00:47][%mdl 1024] Black has compensation.} 37. Bd4 {[%emt 0:00:08]} Qe4 {[%emt 0:01:04]} 38. Qf2 {[%emt 0:00:35][%cal Od1d3]} a5 {[%emt 0:00:30]} 39. Qh4 {[%emt 0:00:45]} Qg6 {[%emt 0:00:42]} 40. Rb1 {[%emt 0:00:00]} Bc7 {[%emt 0:00:00][%cal Od8e8]} 41. Rb7 {[%emt 0:10:28]} Qxc2 {[%emt 0:06:04] Strongly threatening ...Qc1+.} 42. Rxc7 {[%emt 0:14:01]} Rxd4 $11 {[%emt 0:00:16][%mdl 4096] Endgame. KQR-KQR} 43. Kh2 $1 {[%emt 0:02:43]} Rd2 {[%emt 0:06:11]} 44. Qg4 {[%emt 0:00:12]} a4 {[%emt 0:02:43]} 45. f5 {[%emt 0:01:55]} (45. Rc8+ $11 Kh7 46. Rf8) 45... Rf2 $15 {[%emt 0:00:53][%cal Oa4a3]} 46. Ra7 {[%emt 0:02:46]} Qxc3 {[%emt 0:03:46] ...Rf1 is the strong threat.} ({Much worse is} 46... Qxf5 47. Qxf5 Rxf5 48. Rxa4 $11) ({Much weaker is} 46... Rxf5 47. Ra8+ Kh7 48. Rxa4 $11) 47. Qe4 {[%emt 0:00:09] Ra8+ would kill now.} Qf6 $1 {[%emt 0:04:33]} 48. Rxa4 {[%emt 0:00:42]} Rxf5 {[%emt 0:04:29]} (48... Kh7 {simplifies} 49. Rd4 Qxf5 50. Qxf5+ Rxf5 51. g4 Ra5) 49. Ra8+ {[%emt 0:00:52]} Kh7 {[%emt 0:00:01]} 50. Ra5 {[%emt 0:01:44]} g6 {[%emt 0:00:53]} 51. Rxf5 {[%emt 0:00:02]} gxf5 $11 {[%emt 0:01:34] KQ-KQ} 52. Qd5 {[%emt 0:00:23]} Qe6 {[%emt 0:00:04]} 53. Qd4 {[%emt 0:00:12]} Kg6 {[%emt 0:00:24]} 54. Qf4 {[%emt 0:00:39]} Qe4 {[%emt 0:00:21]} 55. Qd6+ {[%emt 0:00:08]} Kg7 {[%emt 0:00:26]} 56. Qg3+ {[%emt 0:00:14]} Kf6 {[%emt 0:00:07]} 57. Qd6+ {[%emt 0:00:25]} Qe6 {[%emt 0:00:15]} 58. Qd8+ {[%emt 0:00:08]} Kg7 {[%emt 0:00:54]} 59. Qd4+ {[%emt 0:00:18]} Kg6 {[%emt 0:00:04]} 60. Qf4 {[%emt 0:00:08]} Qe1 {[%emt 0:00:58]} 61. Qd6+ {[%emt 0:00:30]} Kh7 {[%emt 0:01:04]} 62. Qc7 {[%emt 0:00:24]} Qe6 {[%emt 0:00:07]} 63. Qb8 {[%emt 0:00:16]} f6 {[%emt 0:00:04]} 64. Qa7+ {[%emt 0:02:24]} Kg6 {[%emt 0:00:04]} 65. Qf2 {[%emt 0:00:42]} Qe5+ {[%emt 0:00:03]} 66. Kh1 {[%emt 0:01:03]} f4 {[%emt 0:00:21]} 67. Qf3 {[%emt 0:00:35]} h5 {[%emt 0:00:11]} 68. Kh2 {[%emt 0:00:30]} Kg5 {[%emt 0:01:51]} 69. Kh1 {[%emt 0:00:18]} Qe3 {[%emt 0:01:57] Hoping for ...Qxf3.} 70. Qd5+ $1 {[%emt 0:00:01]} Kh4 {[%emt 0:00:46][%cal Of4f3] And now ...f3! would win.} 71. Kh2 {[%emt 0:01:14]} Qg3+ {[%emt 0:02:09]} 72. Kh1 {[%emt 0:00:02]} Qe1+ {[%emt 0:00:14]} 73. Kh2 {[%emt 0:00:00]} Qe3 {[%emt 0:00:25]} 74. Qc6 {[%emt 0:00:23][%cal Rc6f6]} Kg5 {[%emt 0:01:52]} 75. Qd5+ {[%emt 0:00:05]} Qe5 {[%emt 0:00:07]} 76. Qf3 {[%emt 0:00:04]} f5 {[%emt 0:01:21]} 77. Kh1 {[%emt 0:02:24] The position is equal.} Qe1+ {[%emt 0:02:01]} 78. Kh2 Qe5 {[%emt 0:00:00]} 79. Kg1 {[%emt 0:00:48]} Qe3+ {[%emt 0:00:10]} 80. Kf1 $1 {[%emt 0:00:01]} Qc1+ {[%emt 0:00:06]} 81. Kf2 {[%emt 0:00:05]} Qd2+ {[%emt 0:00:08]} 82. Kg1 {[%emt 0:00:54]} Qe1+ {[%emt 0:00:30]} 83. Kh2 {[%emt 0:00:01]} Qe5 {[%emt 0:00:05]} 84. Kh1 {[%emt 0:00:43]} Qe3 {[%emt 0:00:15]} 85. Qb7 {[%emt 0:00:56]} Qe1+ {[%emt 0:01:51]} 86. Kh2 {[%emt 0:00:01]} Qg3+ {[%emt 0:00:02]} 87. Kh1 {[%emt 0:00:02]} Qe1+ {[%emt 0:00:21]} 88. Kh2 {[%emt 0:00:02]} Qe5 {[%emt 0:00:03] Prevents Qg7+. White must now prevent ...f3+.} 89. Qf3 {[%emt 0:01:07]} Qd4 {[%emt 0:00:27]} (89... Kh4 $5) 90. Qb7 {[%emt 0:00:24]} Qd6 {[%emt 0:01:18]} 91. Qf3 {[%emt 0:00:08]} h4 {[%emt 0:00:26]} 92. Kg1 {[%emt 0:02:54]} Qd4+ {[%emt 0:00:19]} 93. Kh2 {[%emt 0:00:00]} Qe5 {[%emt 0:00:04]} 94. Kg1 {[%emt 0:00:00]} Qe1+ {[%emt 0:00:24]} 95. Kh2 $1 {[%emt 0:00:00]} Qe5 {[%emt 0:01:21]} 96. Kh1 {[%emt 0:00:13]} Qe4 {[%emt 0:00:07] ( -> ...Qxf3)} 97. Kg1 {[%emt 0:00:44]} Qe3+ {[%emt 0:00:49]} 98. Kf1 $1 {[%emt 0:00:01]} Qc1+ {[%emt 0:00:18]} 99. Kf2 {[%emt 0:00:04]} Qc5+ {[%emt 0:00:02]} 100. Kf1 {[%emt 0:02:04]} Qc4+ {[%emt 0:00:25]} 101. Kg1 {[%emt 0:00:06]} Kf6 {[%emt 0:00:05]} 102. Qh5 {[%emt 0:00:29]} Qd4+ {[%emt 0:01:27]} 103. Kh2 {[%emt 0:00:36] Intending Qh8+ and mate.} Qf2 {[%emt 0:00:05]} 104. Qh8+ {[%emt 0:00:09]} Ke6 {[%emt 0:00:06]} 105. Qc8+ {[%emt 0:00:20]} Ke5 {[%emt 0:02:46] Black had all chances to win.   Weighted Error Value: White=0.27 (precise) /Black=0.22 (precise) .  Missed win:     	---       	Black=1      Mistake:       	White=9     	Black=2      Inaccurate:     	White=3     	Black=5      OK:         	White=35    	Black=29     Best:        	White=7     	Black=6      Strong:       	White=5     	Black=1} 1/2-1/2

[Event "14th Karen Asrian Memorial 2024"]
[Site "Yerevan"]
[Date "2024.04.28"]
[Round "5.5"]
[White "Pogosyan, Stefan"]
[Black "Babujian, Levon"]
[Result "0-1"]
[ECO "A05"]
[WhiteElo "2387"]
[BlackElo "2338"]
[Annotator "RC"]
[PlyCount "68"]
[EventDate "2024.04.24"]
[EventType "swiss"]
[EventCountry "ARM"]
[SourceTitle "playchess.com"]
[Source "ChessBase"]
[SourceQuality "1"]
[TimeControl "40/5400+30:1800+30"]

1. Nf3 {[%emt 0:03:29]} Nf6 {[%emt 0:00:22]} 2. b3 {[%emt 0:00:06]} c5 {[%emt 0:00:29]} 3. Bb2 {[%emt 0:00:08]} g6 {[%emt 0:00:30]} 4. Bxf6 {[%emt 0:07:19]} exf6 {[%emt 0:01:18]} 5. c4 {[%emt 0:00:04]} f5 {[%emt 0:02:21]} 6. Nc3 {[%emt 0:00:07]} Bg7 {[%emt 0:00:09]} 7. g3 {[%emt 0:00:06]} Qa5 {[%emt 0:03:47]} 8. Nd5 {[%emt 0:03:39]} d6 {[%emt 0:06:08]} 9. Bg2 {[%emt 0:15:16]} Be6 {[%emt 0:00:28]} 10. Ng5 {[%emt 0:08:43]} Nc6 {[%emt 0:00:50]} 11. Rb1 {[%emt 0:00:07]} O-O {[%emt 0:02:44]} 12. Nxe6 {[%emt 0:05:05]} fxe6 {[%emt 0:00:21]} 13. Nf4 {[%emt 0:00:01]} Rae8 {[%emt 0:03:28]} 14. a4 {[%emt 0:01:18]} Bh6 {[%emt 0:06:56]} 15. e3 {[%emt 0:02:43]} Bxf4 {[%emt 0:07:34]} 16. gxf4 {[%emt 0:00:15]} Nb4 {[%emt 0:00:13]} 17. O-O {[%emt 0:07:22]} e5 {[%emt 0:04:38]} 18. Bxb7 {[%emt 0:05:29]} e4 {[%emt 0:03:25]} 19. d3 {[%emt 0:04:47]} Nxd3 {[%emt 0:03:11]} 20. f3 {[%emt 0:00:36]} Qc3 {[%emt 0:01:14]} 21. fxe4 {[%emt 0:00:44]} fxe4 {[%emt 0:01:15]} 22. Qe2 {[%emt 0:00:05]} Re7 {[%emt 0:04:22]} 23. Bd5+ {[%emt 0:01:25]} Kh8 {[%emt 0:01:08]} 24. Rfd1 {[%emt 0:02:24]} g5 {[%emt 0:06:36]} 25. fxg5 {[%emt 0:07:35]} Re5 {[%emt 0:15:12]} 26. h4 {[%emt 0:06:42]} Rxd5 {[%emt 0:15:36]} 27. cxd5 {[%emt 0:00:24]} Qe5 {[%emt 0:01:11]} 28. Rf1 {[%emt 0:04:26]} Qg3+ {[%emt 0:00:19]} 29. Qg2 {[%emt 0:00:16]} Qxe3+ {[%emt 0:00:11]} 30. Kh2 {[%emt 0:00:06]} Rf3 {[%emt 0:01:59]} 31. Rbd1 {[%emt 0:08:11]} Nf2 {[%emt 0:02:07]} 32. Rde1 {[%emt 0:00:15]} Qf4+ {[%emt 0:01:08]} 33. Kg1 {[%emt 0:00:06]} e3 {[%emt 0:01:01]} 34. Rxe3 {[%emt 0:00:04]} Nh3+ {[%emt 0:00:35]} 0-1